Cogmind - Beta 13 @@@ ROGUE MODE // 2024.04.18 @ 16:49:43 Player: AI-57H Result: Destroyed by S-10 Pest with Light Assault Rifle Performance ------------- Evolutions (0) 0 Regions Visited (2) 400 Robots Destroyed (12) 60 Value Destroyed (231) 231 Prototype IDs (0) 0 Alien Tech Used (0) 0 Bonus (0) 0 TOTAL SCORE: 691 Bonus ------- None Cogmind --------- Core Integrity 0/250 Matter 194/300 Energy 123/125 System Corruption 0% Temperature Cool (0) Movement Core (750) Ox14 Location -10/Mines Parts ------- > --- POWER (1) -------- Light Ion Engine > --- PROPULSION (2) --- (None) > --- UTILITY (2) ------ High-capacity Storage Unit Signal Interpreter > --- WEAPON (2) ------- Light Assault Rifle Light Assault Rifle > --- INVENTORY (20) --- Light Ion Engine Wheel Large Storage Unit Large Battery (200) High-capacity Battery (250) Structural Scanner Visual Processing Unit Sensor Array Sensor Array Signal Interpreter Signal Interpreter Terrain Scanner Targeting Computer Hacking Suite Beam Cannon Peak State ------------ > --- POWER ------------ Light Ion Engine > --- PROPULSION ------- Wheel Compact Wheel > --- UTILITY ---------- Improved Heat Sink High-capacity Storage Unit > --- WEAPON ----------- Light Assault Rifle Light Assault Rifle > --- INVENTORY -------- Ion Engine Light Ion Engine Small Storage Unit Large Battery EM Pulse Gun [Rating: 9] Favorites ----------- Power Ion Engine Engine Ion Engine Propulsion Compact Wheel Wheel Compact Wheel Utility High-capacity Storage Unit Device Improved Heat Sink Storage High-capacity Storage Unit Processor Signal Interpreter Weapon Light Assault Rifle Energy Gun Small Laser Ballistic Gun Light Assault Rifle Ballistic Cannon Light Cannon Build | -11 -10 -10 ------- Run | Yrd Mat Min Slots Evolved . | . . . Power . | . . . Propulsion . | . . . Utility . | . . . Weapon . | . . . Parts Attached 36 | 6 25 5 Power 8 | 1 6 1 Engine 8 | 1 6 1 Core . | . . . Reactor . | . . . Propulsion 10 | 2 6 2 Treads . | . . . Leg . | . . . Wheel 10 | 2 6 2 Hover . | . . . Flight . | . . . Utility 7 | 1 6 . Device 4 | . 4 . Storage 2 | 1 1 . Processor 1 | . 1 . Hackware . | . . . Protection . | . . . Artifact . | . . . Weapon 11 | 2 7 2 Energy Gun 1 | 1 . . Energy Cannon . | . . . Ballistic Gun 9 | 1 6 2 Ballistic Cannon 1 | . 1 . Launcher . | . . . Special Weapon . | . . . Impact Weapon . | . . . Slashing Weapon . | . . . Piercing Weapon . | . . . Special Melee Weapon . | . . . Unidentified Prototypes . | . . . Parts Lost 8 | . 1 7 Power 2 | . 1 1 Propulsion 4 | . . 4 Utility . | . . . Weapon 2 | . . 2 Highest Loss Streak 7 | . 1 7 To Critical Strikes . | . . . Average Slot Usage (%) 84 | . 84 92 Engine 13 | . 13 14 Wheel 23 | . 23 26 Device 1 | . 1 . Storage 14 | . 14 14 Processor 3 | . 2 14 Ballistic Gun 25 | . 26 12 Ballistic Cannon 1 | . . 10 Naked Turns . | . . . Heaviest Build 49 | 10 49 49 Greatest Support 26 | 26 26 26 Greatest Overweight (x) 15 | . 15 2 Average Overweight (x) 1 | . 1 1 Largest Inventory Capacity 20 | 8 20 20 Average Capacity 19 | 5 19 20 Most Carried 20 | 4 20 20 Average Carried 11 | 1 11 18 Final Capacity 20 | 8 20 20 Final Carried 20 | 2 20 15 Class Distribution -------------------- 100% | Mutant Dominant Class ---------------- Mutant | -10/Materials Mutant | -10/Mines Resources | -11 -10 -10 ----------- Run | Yrd Mat Min Matter Collected 571 | 225 341 5 Remotely . | . . . Salvage Created 249 | . 249 . Parts 24 | . 24 . Haulers Intercepted . | . . . Recyclers Shooed 1 | . 1 . Parts Field Recycled . | . . . Retrieved Matter . | . . . Parts Self-Destructed . | . . . Prevented . | . . . Kills | -11 -10 -10 ------- Run | Yrd Mat Min Combat Hostiles Destroyed 6 | . 6 . Guns 6 | . 6 . Classes Destroyed 5 | . 5 . Worker 2 | . 2 . Operator 1 | . 1 . Watcher 3 | . 3 . Swarmer 3 | . 3 . Grunt 3 | . 3 . Best Kill Streak 2 | . 2 . Combat Bots Only 2 | . 2 . Max Kills in Single Turn 1 | . 1 . Gunslinging . | . . . Exploded . | . . . Melee . | . . . Uniques/NPCs Destroyed . | . . . Combat | -11 -10 -10 -------- Run | Yrd Mat Min Hostile Shots Fired 55 | . 23 32 Missed 12 | . 8 4 Damage Taken 714 | . 139 575 Core 257 | . 38 219 Absorbed by Shields . | . . . Core Remaining (%) 100 | 100 . . Volleys Fired 71 | . 60 11 Largest 2 | . 2 2 Hottest 60 | . 60 55 Shots Fired 142 | . 120 22 Gun 136 | . 120 16 Cannon 6 | . . 6 Launcher . | . . . Special . | . . . Kinetic 139 | . 117 22 Thermal 3 | . 3 . Explosive . | . . . Electromagnetic . | . . . Robot Hit Streak 8 | . 8 8 Robot Miss Streak 5 | . 4 5 Penetration Max . | . . . Secondary Targets . | . . . Shots Hit Robots 82 | . 70 12 Core Hits 33 | . 28 5 Critical Kills 1 | . 1 . Critical Parts Destroyed . | . . . Critical Strikes 1 | . 1 . Destroy 1 | . 1 . Melee Attacks . | . . . Impact . | . . . Slashing . | . . . Piercing . | . . . Sneak Attacks . | . . . Combat Hostiles . | . . . Follow-up Attacks . | . . . Damage Inflicted 997 | . 840 157 Guns 637 | . 554 83 Cannons 74 | . . 74 Explosions 286 | . 286 . Melee . | . . . Ramming . | . . . Kinetic 690 | . 533 157 Thermal 307 | . 307 . Explosive . | . . . Electromagnetic . | . . . Impact . | . . . Slashing . | . . . Piercing . | . . . Highest Corruption . | . . . Average Corruption . | . . . Corruption Purged . | . . . Corruption Blocked . | . . . Overload Shots . | . . . Overflow Damage 51 | . 51 . Projectiles . | . . . Explosions 51 | . 51 . Melee . | . . . Knockbacks . | . . . Impact . | . . . Kinetic . | . . . Secondary . | . . . Self-Inflicted Damage . | . . . Shots . | . . . Rammed . | . . . Targets Rammed . | . . . Kicked . | . . . Crushed . | . . . Highest Temperature 20 | . 20 14 Average Temperature 10 | . 11 10 Received Heat Transfer 30 | . 30 . Siege Activations . | . . . Robots Corrupted . | . . . Combat Hostiles . | . . . Parts Fried . | . . . Impact Corruptions . | . . . Robots Melted . | . . . Combat Hostiles . | . . . Parts Melted . | . . . Heat Transferred 200 | . 200 . Parts Sabotaged . | . . . Parts Stolen . | . . . Parts Stripped . | . . . Power Chain Reactions . | . . . Alert | -11 -10 -10 ------- Run | Yrd Mat Min Peak Influence 362 | . 362 43 Initial 28 | . . 28 Average 158 | . 180 23 Maximum Alert Level 1 | . 1 . Low Security (%) 69 | 100 64 100 Level 1 30 | . 35 . Level 2 . | . . . Level 3 . | . . . Level 4 . | . . . Level 5 . | . . . High Security . | . . . Max Security . | . . . Squads Dispatched 2 | . 2 . Investigation 1 | . 1 . Extermination . | . . . Reinforcement 1 | . 1 . Assault . | . . . Garrison . | . . . Intercept . | . . . Searches Triggered . | . . . Construction Impeded . | . . . Haulers Reinforced . | . . . Active Scanning Responses . | . . . Cargo Convoy Interrupts . | . . . Stealth | -11 -10 -10 --------- Run | Yrd Mat Min Distress Signals 1 | . 1 . Communications Jammed . | . . . Distress Signals . | . . . Times Spotted 32 | . 21 11 Peak Tracking Total 6 | . 4 6 Tactical Retreats 6 | . 5 1 Traps | -11 -10 -10 ------- Run | Yrd Mat Min Traps Triggered 9 | . 9 . Indirectly . | . . . Trap Hack Attempts . | . . . Triggered . | . . . Disarmed . | . . . Reprogrammed . | . . . Reused . | . . . Traps Extracted . | . . . Installed . | . . . Triggered . | . . . Machines | -11 -10 -10 ---------- Run | Yrd Mat Min Machines Disabled 2 | . 2 . Max in Single Turn 2 | . 2 . Machines Repaired . | . . . Machines Dismantled . | . . . Machines Sabotaged . | . . . Overloaded Fab Kills . | . . . Hacking | -11 -10 -10 --------- Run | Yrd Mat Min Machines Accessed 4 | . 4 . Terminals 4 | . 4 . Fabricators . | . . . Repair Stations . | . . . Recycling Units . | . . . Scanalyzers . | . . . Garrison Access . | . . . Total Hacks 14 | . 14 . Successful 6 | . 6 . Failed 8 | . 8 . Catastrophic 1 | . 1 . Database Lockouts . | . . . Manual 14 | . 14 . Terminals 14 | . 14 . Fabricators . | . . . Repair Stations . | . . . Recycling Units . | . . . Scanalyzers . | . . . Garrison Access . | . . . Terminal Hacks 4 | . 4 . Part Schematic 4 | . 4 . Fabricator Hacks . | . . . Repair Station Hacks . | . . . Recycling Unit Hacks . | . . . Scanalyzer . | . . . Garrison Access Hacks . | . . . Unauthorized Hacks 2 | . 2 . Terminals 2 | . 2 . Botnet 2 | . 2 . Fabricators . | . . . Repair Stations . | . . . Recycling Units . | . . . Scanalyzers . | . . . Garrison Access . | . . . Data Cores Recovered . | . . . Used . | . . . Hacking Detections 4 | . 4 . Full Trace Events . | . . . Feedback Events . | . . . Feedback Blocked . | . . . Robot Schematics Acquired . | . . . Robots Built . | . . . Authchips . | . . . Time . | . . . Total Robot Build Rating . | . . . Part Schematics Acquired 4 | . 4 . Parts Built . | . . . Authchips . | . . . Time . | . . . Total Part Build Rating . | . . . Parts Repaired . | . . . Time . | . . . Parts Recycled . | . . . Recycled Matter . | . . . Retrieved Matter . | . . . Retrieved Components . | . . . Parts Scanalyzed . | . . . Part Schematics Acquired . | . . . Parts Damaged . | . . . Bothacking | -11 -10 -10 ------------ Run | Yrd Mat Min Used RIF Installer . | . . . Robots Hacked . | . . . Non-combat . | . . . Combat . | . . . Robot Hacks Applied . | . . . Relay Couplers Released . | . . . Fabnet Peak Effective % . | . . . Robots Rewired . | . . . Allies Hacked . | . . . Hacks Repelled . | . . . Allies | -11 -10 -10 -------- Run | Yrd Mat Min Total Allies . | . . . Largest Group . | . . . Highest-Rated Group . | . . . Highest-Rated Ally . | . . . Total Orders . | . . . Ally Attacks . | . . . Total Damage . | . . . Kills . | . . . Allies Corrupted . | . . . Allies Melted . | . . . Intel | -11 -10 -10 ------- Run | Yrd Mat Min Robot Analysis Total . | . . . Derelict Logs Recovered . | . . . Drone Launches . | . . . Drone Recoveries . | . . . Exploration | -11 -10 -10 ------------- Run | Yrd Mat Min Turns Passed 1085 | 63 941 81 Spaces Moved 725 | 34 646 45 Core 13 | 11 2 . Treads . | . . . Legs . | . . . Wheels 712 | 23 644 45 Hover . | . . . Flight . | . . . Fastest Speed 50 | 50 90 105 Average Speed 109 | 77 111 107 Slowest Speed 800 | 100 800 130 Overloaded Moves . | . . . Propulsion Burnouts . | . . . Robots Hopped . | . . . Cave-ins Triggered . | . . . Exploration Rate (%) 34 | 4 74 24 Regions Visited 2 Branch Regions 1 Pre-discovered Areas . | . . . Known Exits Taken 1 | . 1 . Unknown Exits Taken 1 | 1 . . Scrap Searched . | . . . Spaces Dug . | . . . Terrain Destroyed 20 | . 20 . Melee . | . . . Projectile . | . . . AOE 20 | . 20 . Terrain Rammed . | . . . Walls Destroyed . | . . . Machines Disabled . | . . . Actions | -11 -10 -10 --------- Run | Yrd Mat Min Total 890 | 70 759 61 Wait 26 | 23 3 . Move 723 | 33 645 45 Hop . | . . . Pick Up 27 | 8 19 . Fast Attach 22 | . 22 . Attach 12 | 6 1 5 Detach 2 | . 2 . Swap 2 | . 2 . Drop 5 | . 5 . Fire 71 | . 60 11 Melee . | . . . Ram . | . . . Kick . | . . . Crush . | . . . Escape Stasis . | . . . Rewire . | . . . Trap . | . . . Miscellaneous . | . . . Route ------- -11/Scrapyard -10/Materials (discovered 3 exits: *Mat x2 / *Min) -10/Mines (discovered 1 exit: *Mat) History --------- Turn | Location | Event 45 | -11/Scrapyard | Discovered new exit (range 15) 64 | -11/Scrapyard | Entered Materials 317 | -10/Materials | Build established: Mutant 436 | -10/Materials | Discovered new exit (range 15) 841 | -10/Materials | Discovered new exit (range 5) 869 | -10/Materials | Identified exit to Materials 996 | -10/Materials | Discovered new exit (range 9) 1004 | -10/Materials | Identified exit to Mines 1005 | -10/Materials | Entered Mines 1006 | -10/Mines | Assembled infested the area 1011 | -10/Mines | Assisted by a Guerilla fighting off Assembled 1021 | -10/Mines | Met a Derelict bent on vengeance 1066 | -10/Mines | Core integrity fell below 50% 1068 | -10/Mines | Core integrity fell below 20% 1071 | -10/Mines | Discovered exit to Materials (range 8) 1086 | -10/Mines | Destroyed by S-10 Pest with Light Assault Rifle Last Messages --------------- 01057_ RC-FFT(h) destroyed. 01059_ Lgt. Assault Rifle destroyed. 01059_ Wheel destroyed. 01060_ U-05 Engineer builds a Wall. 01061_ Lgt. Cannon destroyed. 01062_ U-05 Engineer lays Concrete. 01063_ Ion Engine destroyed. 01063_ Com. Wheel destroyed. 01063_ U-05 Engineer lays Concrete. 01065_ The unstable cave ceiling collapses. 01066_ U-05 Engineer lays Concrete. 01068_ The unstable cave ceiling collapses. 01068_ U-05 Engineer lays Concrete. 01068_ T-07 Excavator is excavating. 01069_ The unstable cave ceiling collapses. 01071_ as-85908 destroyed. 01071_ U-05 Engineer lays Concrete. 01071_ EXIT=FOUND: MATERIALS 01073_ The unstable cave ceiling collapses. 01083_ Wheel destroyed. Map ----- +----------------------------------------------------+ | ??????????????????????????????????????? | | ??????????????????????????????????????? | | ??????????????????????????????????????? | | ??????????????????????????????????????? | | ??????????????????????????????????????? | | ??????????????????????????????????????? | | ????????????????? ?? ?????????????????? | | ????????????????? ?? ????????????????? | | ??????????????### ## ????????????????? | | ?????????????## ????????????????? | | ?????????????# ????????????????? | | ????????????## #????????????????? | | ????????????# ##???????????????? | | ????????????? ##??????????????? | | ?????????????? ##?????????????? | | ?????????????? ###???????????? | | ?????????????? ##??????????? | | ??????????????# #??????????? | | ??????????????# # #??????????? | | ??????????????# % # #???????????? | | ??????????????# ###???????????? | | ??????????????# ## ##??????????? | | ??????????????# #????####??? | | ?????????###### # ## #### | | ?????????# s# # | | ?????????# s @# ## | | ?????????# """s## % # | | ???????# """ ### % # | | ???????##t """ #?## ## # "## | | ????????## #??#######%# ####? | | ?????????# #????????#" ??? | | ?????????# < #????????# ## # # ####?? | | ?????????? #????????# #?######????? | | ?????????? #????????# #???????????? | | ?????????? ?????????# #???????????? | | ???????????####????????? #???????????? | | ????????????????????????###???????????? | | ??????????????????????????????????????? | | ??????????????????????????????????????? | | ??????????????????????????????????????? | | ??????????????????????????????????????? | | ??????????????????????????????????????? | | ??????????????????????????????????????? | | ??????????????????????????????????????? | | ??????????????????????????????????????? | | ??????????????????????????????????????? | | ??????????????????????????????????????? | | ??????????????????????????????????????? | | ??????????????????????????????????????? | | ??????????????????????????????????????? | +----------------------------------------------------+ Best States ------------- Heat Dissipation 39 Energy Generation 10 Energy Capacity 250 Matter Stores 300 Matter Capacity 300 Sight Range 16 Terrain Scan Range 14 Terrain Scan Density 10 Evasion (%) 50 Item Schematics ----------------- Lgt. Armor Plating | -10/Materials | Hacked Huge Storage Unit | -10/Materials | Hacked Signal Interpreter | -10/Materials | Hacked Sensor Array | -10/Materials | Hacked Robot Schematics ------------------ None Fabricated ------------ Nothing Alien Tech Used ----------------- None Achievements -------------- None Challenges ------------ None Game ------ Seed CloakGodRipper Manual? 0 Play Time 00:15:40 Cumulative 312.7 hours Start 2024.04.18 @ 16:35:06 End 2024.04.18 @ 16:49:43 Sessions 4 Manual Loads 0 Difficulty Rogue Special Mode None Game No. 82 Rogue 56 Adventurer 20 Explorer 6 Win Type - Total 24 Types 9/0/4/3/0/6/2/0/0 Lore% 67 Gallery% 78 Achievement% 74 Wizard Run 0 Options --------- Layout 2 ASCII 0 Keyboard 0 Movement Mouse Keybinds 0 Fullscreen 1 Font 32/SmallcapsGlow Map View 50x44 Zoom Use 0% Tactical HUD 1 Map Filters NONE Filters NONE Steam 1 RUN: 3ee78d2f-94c3-4bc1-ab07-270323e3f55d